bitfinex/quotes_SOLUSD_20250823
["timestamp","ask_amount","ask_price","bid_price","bid_amount"]
[1755926787652,13.73775558,207.33,207.32,26.64512605]
[1755926787847,56.59775558,207.33,207.32,26.64512605]
[1755926788048,0.06,207.41,207.32,27.32512605]
[1755926788270,0.06,207.41,207.4,26.64512605]
[1755926788447,13.59559401,207.4,207.39,26.64512605]
[1755926788975,42.84,207.4,207.39,27.32512605]
[1755926789173,0.06,207.41,207.39,27.32512605]
[1755926789382,0.06,207.41,207.32,26.0]
[1755926789383,42.84,207.4,207.32,26.0]
[1755926789554,56.43559401,207.4,207.39,26.64512605]
[1755926790571,13.59559401,207.39,207.36,0.68]
[1755926790762,13.59559401,207.39,207.38,26.64512605]
[1755926791057,0.06,207.41,207.38,26.64512605]
[1755926791058,0.06,207.41,207.38,27.32512605]
[1755926791371,0.06,207.41,207.4,26.64512605]
[1755926791876,0.06,207.41,207.4,27.32512605]
[1755926792079,0.06,207.41,207.29,28.92856488]
[1755926792080,13.65559401,207.41,207.29,18.92856488]
[1755926792375,13.65559401,207.41,207.4,26.64512605]
[1755926792580,56.47559401,207.41,207.4,26.64512605]
[1755926793782,0.06,207.41,207.4,26.64512605]
[1755926794079,13.65559401,207.41,207.4,26.64512605]
[1755926794272,0.06,207.41,207.4,27.32512605]
[1755926794654,0.06,207.44,207.4,27.32512605]
[1755926794655,0.06,207.44,207.43,26.64512605]
[1755926795087,0.06,207.44,207.43,27.32512605]
[1755926795654,0.06,207.44,207.39,14.46864]
[1755926795849,0.06,207.44,207.43,26.64512605]
[1755926796273,0.06,207.46,207.43,27.32512605]
[1755926796578,0.06,207.46,207.45,26.64512605]
[1755926797171,0.06,207.46,207.45,27.32512605]
[1755926800603,0.06,207.51,207.45,27.32512605]
[1755926800776,0.06,207.51,207.5,26.64512605]
[1755926801164,0.06,207.51,207.45,14.465151]
[1755926801360,0.20216157,207.51,207.5,26.64512605]
[1755926801560,0.34432314,207.51,207.5,26.64512605]
[1755926801773,1.03432314,207.51,207.43,0.68]
[1755926801983,0.28432314,207.49,207.43,26.64512605]
[1755926802189,13.87991715,207.49,207.44,26.64512605]
[1755926802488,13.59559401,207.47,207.44,26.64512605]
[1755926803262,13.59559401,207.47,207.45,26.64512605]
[1755926804078,13.59559401,207.47,207.32,214.1]
[1755926804079,13.59559401,207.45,207.41,26.64512605]
[1755926804372,0.28432314,207.44,207.42,26.64512605]
[1755926804572,0.28432314,207.46,207.43,26.64512605]
[1755926804782,56.63991715,207.45,207.44,26.64512605]
[1755926804982,13.59559401,207.45,207.44,26.64512605]
[1755926805172,56.35559401,207.45,207.44,26.64512605]
[1755926805492,13.59559401,207.44,207.39,0.68]
[1755926805687,13.59559401,207.44,207.43,26.64512605]
[1755926806080,14.56991715,207.44,207.35,0.68]
[1755926806284,0.28432314,207.43,207.41,26.64512605]
[1755926806671,13.59559401,207.41,207.4,26.64512605]
[1755926806969,13.59559401,207.45,207.4,26.64512605]
[1755926807183,13.59559401,207.45,207.44,26.64512605]
[1755926807391,56.33559401,207.45,207.44,26.64512605]
[1755926809169,56.33559401,207.45,207.41,0.68]
[1755926809401,56.33559401,207.45,207.44,26.64512605]
[1755926811384,57.30991715,207.45,207.4,26.64512605]
[1755926811587,0.97432314,207.44,207.4,26.64512605]
[1755926811897,0.28432314,207.41,207.39,0.03]
[1755926812100,56.59991715,207.4,207.39,0.03]
[1755926812477,57.28991715,207.4,207.39,0.03]
[1755926812981,56.59991715,207.4,207.39,0.03]
[1755926814309,56.59991715,207.4,207.39,26.67512605]
[1755926814501,56.31559401,207.4,207.39,26.67512605]
[1755926815924,57.28991715,207.4,207.39,26.67512605]
[1755926816083,57.28991715,207.4,207.39,0.03]
[1755926816282,56.59991715,207.4,207.39,0.03]
[1755926816895,56.59991715,207.4,207.39,26.67512605]
[1755926817093,56.31559401,207.4,207.39,26.67512605]
[1755926818116,56.29559401,207.4,207.39,26.67512605]
[1755926818288,56.29559401,207.4,207.39,17.96431345]
[1755926820513,56.27559401,207.4,207.39,17.96431345]
[1755926821590,56.27559401,207.4,207.39,0.03]
[1755926821796,56.27559401,207.4,207.39,17.96431345]
[1755926822394,56.27559401,207.4,207.39,15.96431345]
[1755926822806,0.06,207.46,207.39,16.68431345]
[1755926823014,0.06,207.46,207.45,17.93431345]
[1755926823316,0.14216157,207.45,207.39,0.72]
[1755926823491,0.06,207.46,207.39,0.72]
[1755926823819,0.06,207.46,207.45,17.93431345]
[1755926823998,56.31559401,207.46,207.45,17.93431345]
[1755926825029,0.06,207.46,207.45,18.65431345]
[1755926825208,42.72,207.46,207.45,18.65431345]
[1755926825532,13.59559401,207.45,207.4,26.72]
[1755926825816,13.59559401,207.45,207.44,17.93431345]
[1755926827035,13.87991715,207.45,207.34,14.500733]
[1755926827197,0.28432314,207.44,207.4,17.93431345]
[1755926827399,13.87991715,207.42,207.4,17.93431345]
[1755926827720,13.87991715,207.42,207.36,0.72]
[1755926827902,13.87991715,207.42,207.4,17.93431345]
[1755926828604,13.87991715,207.4,207.39,17.93431345]
[1755926828804,56.51991715,207.4,207.39,17.93431345]
[1755926829808,0.28432314,207.39,207.36,0.03]
[1755926830011,0.28432314,207.37,207.36,0.03]
[1755926830213,56.51991715,207.37,207.36,0.03]
[1755926830410,57.18991715,207.37,207.36,0.03]
[1755926832212,75.1242306,207.37,207.36,0.03]
[1755926832417,57.16991715,207.37,207.36,0.03]
[1755926832811,13.87991715,207.37,207.36,0.03]
[1755926833101,56.21559401,207.37,207.36,17.96431345]
[1755926836514,56.47991715,207.37,207.36,0.03]
[1755926836938,57.14991715,207.37,207.36,0.03]
[1755926837516,56.47991715,207.37,207.36,0.03]
[1755926839151,13.59559401,207.37,207.36,21.44233159]
[1755926839322,56.19559401,207.37,207.36,21.44233159]
[1755926839512,56.17559401,207.37,207.36,21.44233159]
[1755926839704,13.59559401,207.37,207.36,20.72233159]
[1755926840002,56.17559401,207.37,207.36,20.72233159]
[1755926841226,13.59559401,207.37,207.36,20.72233159]
[1755926841428,0.8857,227.26,207.4,26.0]
[1755926841429,0.06,207.51,207.4,26.0]
[1755926841615,0.06,207.51,207.45,20.69233159]
[1755926841616,42.62,207.46,207.45,20.69233159]
[1755926841816,13.59559401,207.45,207.41,20.69233159]
[1755926842029,13.59559401,207.43,207.42,20.69233159]
[1755926842433,0.06,207.46,207.42,20.69233159]
[1755926842640,13.59559401,207.43,207.42,0.72]
[1755926842837,56.15559401,207.43,207.42,0.72]
[1755926843024,42.56,207.43,207.42,0.72]
[1755926843631,0.06,207.46,207.42,0.72]
[1755926843827,42.56,207.45,207.43,0.72]
[1755926844022,42.56,207.45,207.4,0.72]
[1755926844229,42.56,207.45,207.36,0.03]
[1755926844230,13.59559401,207.44,207.36,0.03]
[1755926844551,13.59559401,207.44,207.37,0.72]
[1755926844724,13.59559401,207.44,207.36,0.03]
[1755926844725,0.28432314,207.41,207.36,0.03]
[1755926844935,13.59559401,207.39,207.36,0.03]
[1755926845240,13.59559401,207.37,207.36,0.03]
[1755926845440,42.54,207.37,207.36,21.44233159]
[1755926845662,42.54,207.37,207.36,20.72233159]
[1755926846557,56.13559401,207.37,207.36,20.72233159]
[1755926846750,57.08991715,207.37,207.36,0.03]
[1755926847327,77.78224874,207.37,207.36,0.03]
[1755926848340,77.76224874,207.37,207.36,0.03]
[1755926849066,57.06991715,207.37,207.36,0.03]
[1755926850067,14.54991715,207.37,207.36,0.03]
[1755926850364,57.06991715,207.37,207.36,0.03]
[1755926851364,13.87991715,207.37,207.36,0.03]
[1755926851657,56.39991715,207.37,207.36,0.03]
[1755926852233,13.87991715,207.37,207.36,0.03]
[1755926852747,56.37991715,207.37,207.36,0.03]
[1755926853126,56.23775558,207.37,207.36,0.03]
[1755926853531,56.37991715,207.37,207.36,0.03]
[1755926854636,77.76224874,207.37,207.36,0.03]
[1755926855139,39.59559401,207.32,207.23,20.79233159]
[1755926855354,103.07224874,207.32,207.23,0.1]
[1755926855566,103.76224874,207.32,207.25,20.69233159]
[1755926855932,83.06991715,207.32,207.25,20.69233159]
[1755926856146,103.76224874,207.32,207.23,0.1]
[1755926857470,61.26224874,207.32,207.23,20.79233159]
[1755926857641,103.74224874,207.32,207.23,20.79233159]
[1755926858136,61.26224874,207.32,207.23,20.79233159]
[1755926858446,103.74224874,207.32,207.23,0.1]
[1755926859362,34.57224874,207.27,207.23,0.1]
[1755926859573,111.79224874,207.27,207.23,0.1]
[1755926859737,112.48224874,207.27,207.23,0.1]
[1755926861467,48.63991715,207.27,207.23,0.1]
[1755926861639,69.33224874,207.27,207.23,0.1]
[1755926861848,90.81559401,207.27,207.23,0.1]
[1755926862041,91.09991715,207.27,207.23,0.1]
[1755926862366,90.95775558,207.27,207.23,0.1]
[1755926862662,90.81559401,207.27,207.24,20.69233159]
[1755926863188,90.95775558,207.27,207.24,20.69233159]
[1755926863469,91.09991715,207.27,207.24,20.69233159]
[1755926863761,48.35559401,207.27,207.26,21.44233159]
[1755926864172,90.95775558,207.27,207.26,21.44233159]
[1755926864552,90.81559401,207.27,207.26,21.44233159]
[1755926864785,90.79559401,207.27,207.26,21.44233159]
[1755926866263,90.79559401,207.27,207.15,0.1]
[1755926866264,28.34991715,207.22,207.15,0.1]
[1755926866478,13.87991715,207.17,207.15,20.79233159]
[1755926866775,56.03559401,207.16,207.15,0.1]
[1755926867186,13.59559401,207.16,207.15,20.79233159]
[1755926867492,56.03559401,207.16,207.15,20.79233159]
[1755926868209,13.59559401,207.16,207.15,20.79233159]
[1755926868379,56.03559401,207.16,207.15,20.79233159]
[1755926869089,13.59559401,207.16,207.15,0.1]
[1755926869472,56.03559401,207.16,207.15,0.1]
[1755926869995,13.59559401,207.16,207.15,0.1]
[1755926870162,56.03559401,207.16,207.15,0.1]
[1755926870364,13.59559401,207.16,207.15,0.1]
[1755926870564,56.03559401,207.16,207.15,0.1]
[1755926870984,56.31991715,207.16,207.15,0.1]
[1755926871185,77.70224874,207.16,207.15,0.1]
[1755926871391,14.56991715,207.16,207.15,0.1]
[1755926871690,77.70224874,207.16,207.15,0.1]
[1755926871867,34.57224874,207.11,207.1,0.1]
[1755926872068,77.01224874,207.11,207.1,0.1]
[1755926872291,77.70224874,207.11,207.1,0.1]
[1755926872577,35.26224874,207.11,207.1,0.1]
[1755926872778,77.70224874,207.11,207.1,0.1]
[1755926873287,77.68224874,207.11,207.1,0.1]
[1755926873879,35.26224874,207.11,207.1,0.1]
[1755926874197,77.68224874,207.11,207.1,0.1]
[1755926874381,13.59559401,207.03,207.0,500.0]
[1755926874581,13.59559401,207.01,207.0,500.0]
[1755926874785,13.59559401,207.01,207.0,500.72]
[1755926874987,56.03559401,207.01,207.0,521.41233159]
[1755926875185,56.03559401,207.01,207.0,500.72]
[1755926875723,56.01559401,207.01,207.0,500.72]
[1755926876300,13.59559401,207.01,207.0,500.72]
[1755926876507,56.01559401,207.01,207.0,500.72]
[1755926877904,56.01559401,207.01,207.0,521.41233159]
[1755926878416,0.66,207.15,207.0,521.41233159]
[1755926878576,0.66,207.18,207.09,20.69233159]
[1755926878912,63.11233159,207.17,207.11,20.69233159]
[1755926879208,0.66,207.25,207.16,20.69233159]
[1755926879418,20.69233159,207.24,207.17,20.69233159]
[1755926879623,20.69233159,207.19,207.13,0.69]
[1755926879813,13.59559401,207.17,207.13,0.69]
[1755926880021,13.59559401,207.17,207.13,21.38233159]
[1755926880207,13.59559401,207.15,207.14,0.69]
[1755926880410,56.01559401,207.15,207.11,20.69233159]
[1755926880606,56.01559401,207.15,207.12,0.69]
[1755926880805,13.59559401,207.15,207.12,21.38233159]
[1755926881012,56.01559401,207.14,207.13,21.38233159]
[1755926881930,56.01559401,207.14,207.07,26.0]
[1755926881931,56.01559401,207.14,207.1,21.38233159]
[1755926882237,0.28432314,207.12,207.11,0.69]
[1755926882523,13.59559401,207.11,207.09,20.69233159]
[1755926882932,13.59559401,207.11,207.08,20.69233159]
[1755926883252,13.59559401,207.11,207.09,0.69]
[1755926884502,13.59559401,207.11,207.07,20.69233159]
[1755926884703,13.59559401,207.11,207.0,500.0]
[1755926884704,0.28432314,207.1,207.05,0.69]
[1755926884937,0.28432314,207.1,207.0,500.0]
[1755926884938,13.59559401,207.08,207.03,20.69233159]
[1755926885114,13.59559401,207.08,207.03,21.38233159]
[1755926885310,13.59559401,207.06,207.0,521.38233159]
[1755926885505,13.59559401,207.04,207.0,500.69]
[1755926885709,20.69233159,207.11,207.03,20.69233159]
[1755926885932,56.27991715,207.1,207.05,20.69233159]
[1755926886133,56.27991715,207.1,207.06,0.69]
[1755926887039,55.99559401,207.09,207.08,20.69233159]
[1755926887228,55.99559401,207.09,207.04,0.03]
[1755926887540,13.59559401,207.09,207.08,21.38233159]
[1755926887838,55.99559401,207.09,207.08,21.38233159]
[1755926888418,55.99559401,207.09,207.08,0.69]
[1755926888839,0.06,207.16,207.08,47.38233159]
[1755926889130,0.06,207.16,207.15,20.69233159]
[1755926889320,42.44,207.16,207.15,20.69233159]
[1755926889516,56.03559401,207.16,207.15,21.38233159]
[1755926890931,0.06,207.16,207.15,21.38233159]
[1755926891143,42.44,207.16,207.15,21.38233159]
[1755926891314,0.06,207.21,207.18,26.0]
[1755926891516,0.06,207.21,207.2,20.69233159]
[1755926891940,0.06,207.21,207.2,21.38233159]
[1755926892631,0.06,207.24,207.23,26.0]
[1755926892834,0.06,207.24,207.23,21.38233159]
[1755926894141,0.06,207.26,207.25,26.0]
[1755926894648,0.06,207.26,207.25,47.38233159]
[1755926895453,0.06,207.45,207.25,47.38233159]
[1755926895642,0.66,207.44,207.38,20.69233159]
[1755926895819,42.34,207.4,207.38,20.69233159]
[1755926896316,42.34,207.4,207.38,21.38233159]
[1755926897841,13.59559401,207.41,207.38,21.38233159]
[1755926898014,42.4,207.39,207.38,21.38233159]
[1755926898444,0.06,207.39,207.38,21.38233159]
[1755926899123,0.06,207.39,207.38,20.69233159]
[1755926899326,13.65559401,207.39,207.32,26.69]
[1755926899631,13.59559401,207.37,207.35,20.69233159]
[1755926899821,13.59559401,207.37,207.36,20.69233159]
[1755926900235,13.59559401,207.37,207.32,0.69]
[1755926900449,13.59559401,207.37,207.34,20.69233159]
[1755926900930,13.59559401,207.37,207.35,20.69233159]
[1755926901424,13.65559401,207.39,207.34,20.69233159]
[1755926901619,13.59559401,207.37,207.34,20.69233159]
[1755926901835,13.59559401,207.37,207.31,0.69]
[1755926902063,55.89559401,207.36,207.35,20.69233159]
[1755926902272,13.59559401,207.35,207.33,20.69233159]
[1755926902449,14.25559401,207.35,207.26,0.69]
[1755926902771,13.59559401,207.33,207.3,20.69233159]
[1755926902966,13.59559401,207.31,207.27,20.69233159]
[1755926903476,0.66,207.3,207.25,20.69233159]
[1755926903676,20.69233159,207.3,207.24,20.69233159]
[1755926903972,21.35233159,207.3,207.24,20.69233159]
[1755926904284,13.59559401,207.31,207.26,20.69233159]
[1755926904460,42.28,207.3,207.26,20.69233159]
[1755926904973,13.59559401,207.28,207.25,20.69233159]
[1755926905174,0.66,207.33,207.25,20.69233159]
[1755926905175,13.87991715,207.32,207.27,20.69233159]
[1755926905475,13.59559401,207.35,207.3,20.69233159]
[1755926905653,42.28,207.34,207.32,20.69233159]
[1755926905858,13.59559401,207.33,207.28,0.69]
[1755926906063,55.87559401,207.32,207.31,20.69233159]
[1755926906463,13.59559401,207.32,207.31,20.69233159]
[1755926906772,55.85559401,207.32,207.31,20.69233159]
[1755926907270,13.59559401,207.31,207.29,20.69233159]
[1755926907446,13.59559401,207.31,207.24,0.66]
[1755926907649,13.59559401,207.31,207.26,20.69233159]
[1755926907873,13.59559401,207.29,207.26,20.69233159]
[1755926908052,42.26,207.28,207.26,20.69233159]
[1755926908454,13.59559401,207.27,207.24,20.69233159]
[1755926908654,13.59559401,207.31,207.26,20.69233159]
[1755926908853,13.59559401,207.29,207.28,20.69233159]
[1755926909054,13.59559401,207.29,207.27,20.69233159]
[1755926909254,0.94432314,207.36,207.28,20.69233159]
[1755926909474,55.85559401,207.35,207.31,20.69233159]
[1755926909778,0.66,207.34,207.31,20.69233159]
[1755926910461,55.85559401,207.35,207.31,20.69233159]
[1755926910667,13.59559401,207.34,207.31,20.69233159]
[1755926910864,13.59559401,207.34,207.3,20.69233159]
[1755926911068,42.24,207.33,207.31,20.69233159]
[1755926911250,13.59559401,207.32,207.31,20.69233159]
[1755926911449,13.59559401,207.32,207.3,20.69233159]
[1755926911681,13.59559401,207.32,207.29,20.69233159]
[1755926912986,13.73775558,207.35,207.31,20.69233159]
[1755926913287,42.24,207.34,207.31,20.69233159]
[1755926914977,42.24,207.34,207.33,20.69233159]
[1755926915158,55.83559401,207.34,207.33,20.69233159]
[1755926915803,13.59559401,207.33,207.28,0.66]
[1755926916152,13.59559401,207.33,207.29,0.66]
[1755926916377,13.59559401,207.33,207.3,0.66]
[1755926916877,13.59559401,207.33,207.32,20.69233159]
[1755926918576,0.06,207.45,207.41,26.0]
[1755926919084,0.06,207.45,207.35,0.28432314]
[1755926919085,0.06,207.45,207.43,20.69233159]
[1755926920592,13.65559401,207.45,207.38,0.66]
[1755926920770,13.65559401,207.45,207.4,20.69233159]
[1755926920965,13.65559401,207.45,207.42,20.69233159]
[1755926921169,13.65559401,207.45,207.43,20.69233159]
[1755926921502,13.65559401,207.45,207.36,0.66]
[1755926921699,13.65559401,207.45,207.43,20.69233159]
[1755926921700,0.06,207.45,207.43,20.69233159]
[1755926921877,42.26,207.45,207.43,21.35233159]
[1755926922474,42.26,207.45,207.43,20.69233159]
[1755926922898,13.65559401,207.44,207.43,20.69233159]
[1755926923317,13.65559401,207.44,207.38,0.66]
[1755926923471,14.31559401,207.44,207.42,20.69233159]
[1755926923678,13.59559401,207.42,207.39,20.69233159]
[1755926923902,0.94432314,207.43,207.39,20.69233159]
[1755926923903,13.59559401,207.4,207.39,20.69233159]
[1755926924409,42.18,207.41,207.39,20.69233159]
[1755926924577,55.77559401,207.41,207.4,20.69233159]
[1755926925176,13.59559401,207.41,207.35,0.66]
[1755926925383,13.59559401,207.41,207.4,20.69233159]
[1755926925582,55.75559401,207.41,207.4,20.69233159]
[1755926926394,13.59559401,207.4,207.34,0.66]
[1755926926901,0.06,207.46,207.41,26.0]
[1755926927078,0.06,207.5,207.45,26.0]
[1755926927586,13.59559401,207.53,207.49,20.69233159]
[1755926927783,42.16,207.52,207.5,20.69233159]
[1755926929609,13.65559401,207.51,207.5,20.69233159]
[1755926931204,0.06,207.51,207.5,20.69233159]
[1755926932010,0.06,207.51,207.5,20.72233159]
[1755926932502,13.65559401,207.51,207.5,20.72233159]
[1755926934809,0.06,207.51,207.5,21.38233159]
[1755926935009,0.06,207.51,207.5,26.69]
[1755926935197,0.06,207.51,207.5,21.38233159]
[1755926935912,0.06,207.51,207.5,47.38233159]
[1755926937103,42.1,207.53,207.52,26.0]
[1755926937309,0.06,207.54,207.52,47.41233159]
[1755926937610,0.06,207.54,207.53,20.69233159]
[1755926938387,0.06,207.54,207.52,26.72]
[1755926940092,0.06,207.54,207.52,26.0]
[1755926940286,0.06,207.54,207.53,0.72]
[1755926940485,0.06,207.54,207.52,26.0]
[1755926940736,0.06,207.56,207.53,21.41233159]
[1755926940892,0.2,207.62,207.61,20.69233159]
[1755926941211,0.2,207.65,207.64,26.0]
[1755926941416,0.2,207.65,207.64,20.69233159]
[1755926941595,0.06,207.66,207.64,21.41233159]
[1755926941795,0.06,207.66,207.65,21.41233159]
[1755926941999,0.06,207.66,207.65,20.69233159]
[1755926944321,0.06,207.66,207.65,21.41233159]
[1755926948994,0.06,207.71,207.65,42.10466318]
[1755926949225,0.06,207.71,207.69,26.0]
[1755926949398,0.06,207.73,207.69,26.0]
[1755926949399,0.06,207.73,207.72,26.0]
[1755926949614,0.06,207.73,207.72,46.69233159]
[1755926950291,0.06,207.73,207.72,26.0]
[1755926950499,0.72,207.73,207.72,20.69233159]
[1755926950804,0.72,207.73,207.71,20.69233159]
[1755926951005,13.59559401,207.71,207.68,26.0]
[1755926951330,41.98,207.7,207.63,5.52998747]
[1755926951795,0.06,207.73,207.66,26.0]
[1755926951990,13.65559401,207.73,207.66,26.0]
[1755926952234,13.65559401,207.73,207.72,20.69233159]
[1755926952426,0.72,207.73,207.72,20.69233159]
[1755926952812,14.31559401,207.73,207.72,20.69233159]
[1755926953013,56.27559401,207.73,207.72,20.69233159]
[1755926953922,55.61559401,207.73,207.72,20.69233159]
[1755926954427,55.61559401,207.73,207.66,26.72]
[1755926954601,13.65559401,207.73,207.72,20.69233159]
[1755926954801,55.61559401,207.73,207.72,20.69233159]
[1755926956603,0.06,207.73,207.72,20.69233159]
[1755926957732,0.06,207.73,207.7,26.0]
[1755926957938,0.66,207.72,207.66,26.0]
[1755926958239,14.25559401,207.72,207.71,20.69233159]
[1755926959237,13.59559401,207.72,207.71,20.69233159]
[1755926959541,55.53559401,207.72,207.71,20.69233159]
[1755926959833,41.94,207.72,207.71,20.69233159]
[1755926961606,0.06,207.73,207.71,20.69233159]
[1755926961942,41.92,207.72,207.68,0.72]
[1755926962142,41.98,207.73,207.69,0.72]
[1755926962810,41.98,207.73,207.7,0.72]
[1755926963008,14.25559401,207.72,207.66,26.0]
[1755926963224,13.59559401,207.72,207.58,10.0]
[1755926963423,13.59559401,207.7,207.61,14.451911]
[1755926963605,42.56,207.69,207.59,0.72]
[1755926963806,41.9,207.69,207.59,0.72]
[1755926964019,13.59559401,207.67,207.59,4.96349654]
[1755926964338,41.9,207.66,207.64,0.03]
[1755926964514,41.9,207.66,207.65,20.69233159]
[1755926964716,42.56,207.66,207.65,20.69233159]
[1755926965855,42.56,207.66,207.64,0.03]
[1755926965856,13.59559401,207.65,207.64,20.72233159]
[1755926966019,14.25559401,207.65,207.64,20.72233159]
[1755926966713,14.53991715,207.65,207.64,0.03]
[1755926966915,35.23224874,207.65,207.64,0.03]
[1755926967639,56.13559401,207.65,207.64,20.72233159]
[1755926968348,0.28432314,207.64,207.5,0.03]
[1755926968555,0.28432314,207.64,207.52,26.03]
[1755926968715,13.59559401,207.62,207.52,26.03]
[1755926968914,0.28432314,207.64,207.52,26.03]
[1755926968915,0.28432314,207.59,207.52,26.03]
[1755926969136,13.59559401,207.6,207.52,26.03]
[1755926969324,13.59559401,207.57,207.56,20.69233159]
[1755926969615,56.16559401,207.57,207.56,20.69233159]
[1755926969938,56.16559401,207.57,207.55,20.69233159]
[1755926970141,0.69,207.56,207.55,20.69233159]
[1755926970313,13.59559401,207.55,207.52,0.03]
[1755926971447,41.86,207.54,207.52,0.03]
[1755926971748,13.59559401,207.53,207.52,0.03]
[1755926972434,55.45559401,207.53,207.52,0.03]
[1755926973044,56.14559401,207.53,207.52,20.72233159]
[1755926973546,56.14559401,207.53,207.52,0.03]
[1755926974045,56.14559401,207.53,207.52,20.72233159]
[1755926974540,56.14559401,207.53,207.52,0.03]
[1755926977744,56.42991715,207.53,207.52,0.03]
[1755926978238,56.40991715,207.53,207.52,0.03]
[1755926979635,41.84,207.53,207.52,20.72233159]
[1755926979841,55.43559401,207.53,207.52,20.72233159]
[1755926980223,0.69,207.62,207.52,21.41233159]
[1755926980533,13.59559401,207.6,207.59,20.69233159]
[1755926981036,14.28559401,207.6,207.59,20.69233159]
[1755926981354,13.59559401,207.6,207.59,20.69233159]
[1755926981555,13.59559401,207.62,207.59,20.69233159]
[1755926981849,0.06,207.64,207.61,20.69233159]
[1755926982023,13.59559401,207.62,207.57,0.69]
[1755926982220,13.59559401,207.62,207.61,20.69233159]
[1755926982534,41.82,207.62,207.61,21.38233159]
[1755926983756,0.06,207.64,207.61,21.38233159]
[1755926983928,0.06,207.64,207.63,20.69233159]
[1755926984321,0.06,207.64,207.63,21.38233159]
[1755926984552,0.06,207.64,207.63,20.69233159]
[1755926984756,0.06,207.64,207.63,21.38233159]
[1755926988027,0.06,207.64,207.63,20.69233159]
[1755926988228,0.06,207.73,207.66,26.0]
[1755926988440,41.78,207.71,207.66,26.0]
[1755926988751,41.78,207.71,207.66,47.38233159]
[1755926988956,41.78,207.71,207.66,46.69233159]
[1755926989268,41.78,207.71,207.68,20.69233159]
[1755926991960,13.65559401,207.73,207.68,20.69233159]
[1755926992255,41.82,207.69,207.68,20.69233159]
[1755926992637,13.59559401,207.68,207.67,20.69233159]
[1755926992842,56.02559401,207.68,207.67,20.69233159]
[1755926993146,56.02559401,207.68,207.58,4.22866562]
[1755926993147,56.02559401,207.68,207.66,20.69233159]
[1755926993351,55.33559401,207.68,207.66,20.69233159]
[1755926993531,13.59559401,207.68,207.66,20.69233159]
[1755926993730,41.74,207.67,207.66,20.69233159]
[1755926994268,14.28559401,207.68,207.66,20.69233159]
[1755926994443,0.06,207.69,207.67,20.69233159]
[1755926994771,41.74,207.68,207.67,20.69233159]
[1755926995563,42.43,207.68,207.67,20.69233159]
[1755926997566,13.40283025,207.67,207.58,0.03]
[1755926997733,13.40283025,207.67,207.63,20.69233159]
[1755926997935,27.03432314,207.69,207.66,20.69233159]
[1755926998134,42.39,207.68,207.67,20.69233159]
[1755926998432,42.39,207.68,207.6,0.03]
[1755926998433,0.28432314,207.67,207.6,0.03]
[1755926998636,0.69,207.66,207.63,20.69233159]
[1755926999233,0.69,207.66,207.6,0.03]
[1755926999432,0.69,207.66,207.6,20.72233159]
[1755926999636,0.28432314,207.64,207.6,0.03]
[1755926999842,13.59559401,207.62,207.6,0.03]
[1755927000163,14.56991715,207.61,207.6,0.03]
[1755927000882,55.55991715,207.61,207.6,20.72233159]
[1755927001044,56.24991715,207.61,207.6,0.03]
[1755927003373,76.94224874,207.61,207.6,0.03]
[1755927003756,56.24991715,207.61,207.6,0.03]
[1755927004855,14.56991715,207.61,207.6,0.03]
[1755927005070,56.22991715,207.61,207.6,0.03]
[1755927005246,0.69,207.66,207.6,21.39233159]
[1755927005578,0.06,207.69,207.65,20.69233159]
[1755927005785,0.06,207.69,207.68,20.69233159]
[1755927006072,41.72,207.69,207.68,20.69233159]
[1755927006279,0.06,207.69,207.68,21.36233159]
[1755927006481,41.72,207.69,207.68,21.36233159]
[1755927007052,0.06,207.69,207.68,21.36233159]
[1755927007850,0.06,207.71,207.7,26.0]
[1755927008047,0.06,207.71,207.69,0.67]
[1755927008356,0.06,207.71,207.7,20.69233159]
[1755927008561,0.06,207.71,207.7,46.69233159]
[1755927008765,0.06,207.71,207.7,47.36233159]
[1755927009288,0.06,207.71,207.7,26.0]